Workbook

Sheet RAIN-TANK 2017
B2: RAINWATER HARVESTING STORAGE WORKSHEET | H2: WEATHER STATION: | K2: Friday Harbor, San Juan Island | S2: Country
B3: Optimize your storage volume | H3: PROJECT NAME: | J3: Test | S3: Aberdeen | T3: =--ISNUMBER(IFERROR(SEARCH($K$2,S3,1),"")) -> 0 | U3: =IF(T3=1,COUNTIF($T$3:T3,1),"") ->  | V3: =IFERROR(INDEX($S$3:$S$21,MATCH(ROWS($U$3:U3),$U$3:$U$21,0)),"") -> Friday Harbor, San Juan Island | W3: =IFERROR(INDEX($S$3:$S$21,MATCH(ROWS($U$3:V3),$U$3:$U$21,0)),"") -> Friday Harbor, San Juan Island | X3: =IFERROR(INDEX($S$3:$S$21,MATCH(ROWS($U$3:U3),$U$3:$U$21,0)),"") -> Friday Harbor, San Juan Island | Z3: =$V$3:INDEX($V$3:$V$21,MAX($U$3:$U$21),1) -> Friday Harbor, San Juan Island
H4: DATE: | J4: 2017-07-21 | S4: Clearwater | T4: =--ISNUMBER(IFERROR(SEARCH($K$2,S4,1),"")) -> 0 | U4: =IF(T4=1,COUNTIF($T$3:T4,1),"") ->  | V4: =IFERROR(INDEX($S$3:$S$21,MATCH(ROWS($U$3:U4),$U$3:$U$21,0)),"") ->  | W4: =IFERROR(INDEX($S$3:$S$21,MATCH(ROWS($U$3:V4),$U$3:$U$21,0)),"") ->  | X4: =IFERROR(INDEX($S$3:$S$21,MATCH(ROWS($U$3:U4),$U$3:$U$21,0)),"") ->  | Z4: =$V$3:INDEX($V$3:$V$21,MAX($U$3:$U$21),1) -> Friday Harbor, San Juan Island
C5: INPUTS | S5: Forks | T5: 0 | U5: =IF(T5=1,COUNTIF($T$3:T5,1),"") ->  | V5: =IFERROR(INDEX($S$3:$S$21,MATCH(ROWS($U$3:U5),$U$3:$U$21,0)),"") ->  | W5: =IFERROR(INDEX($S$3:$S$21,MATCH(ROWS($U$3:V5),$U$3:$U$21,0)),"") ->  | X5: =IFERROR(INDEX($S$3:$S$21,MATCH(ROWS($U$3:U5),$U$3:$U$21,0)),"") ->  | Z5: =$V$3:INDEX($V$3:$V$21,MAX($U$3:$U$21),1) -> Friday Harbor, San Juan Island
S6: Friday Harbor, San Juan Island | T6: 1 | U6: =IF(T6=1,COUNTIF($T$3:T6,1),"") -> 1 | V6: =IFERROR(INDEX($S$3:$S$21,MATCH(ROWS($U$3:U6),$U$3:$U$21,0)),"") ->  | W6: =IFERROR(INDEX($S$3:$S$21,MATCH(ROWS($U$3:V6),$U$3:$U$21,0)),"") ->  | X6: =IFERROR(INDEX($S$3:$S$21,MATCH(ROWS($U$3:U6),$U$3:$U$21,0)),"") ->  | Z6: =$V$3:INDEX($V$3:$V$21,MAX($U$3:$U$21),1) -> Friday Harbor, San Juan Island
B7: MONTH | C7: JAN | D7: FEB | E7: MAR | F7: APR | G7: MAY | H7: JUN | I7: JUL | J7: AUG | K7: SEPT | L7: OCT | M7: NOV | N7: DEC | O7: TOTAL | P7: Column1 | S7: Grayland | T7: 0 | U7: =IF(T7=1,COUNTIF($T$3:T7,1),"") ->  | V7: =IFERROR(INDEX($S$3:$S$21,MATCH(ROWS($U$3:U7),$U$3:$U$21,0)),"") ->  | W7: =IFERROR(INDEX($S$3:$S$21,MATCH(ROWS($U$3:V7),$U$3:$U$21,0)),"") ->  | X7: =IFERROR(INDEX($S$3:$S$21,MATCH(ROWS($U$3:U7),$U$3:$U$21,0)),"") ->  | Z7: =$V$3:INDEX($V$3:$V$21,MAX($U$3:$U$21),1) -> Friday Harbor, San Juan Island
B8: Washington State Precipitation (Inches) | C8: =VLOOKUP($K$2,'Rainfall Data'!$A$4:$O$40,2,FALSE) -> 4.2 | D8: =VLOOKUP($K$2,'Rainfall Data'!$A$4:$O$40,3,FALSE) -> 2.1 | E8: =VLOOKUP($K$2,'Rainfall Data'!$A$4:$O$40,4,FALSE) -> 2 | F8: =VLOOKUP($K$2,'Rainfall Data'!$A$4:$O$40,5,FALSE) -> 1.6 | G8: =VLOOKUP($K$2,'Rainfall Data'!$A$4:$O$40,6,FALSE) -> 1.5 | H8: =VLOOKUP($K$2,'Rainfall Data'!$A$4:$O$40,7,FALSE) -> 1.1 | I8: =VLOOKUP($K$2,'Rainfall Data'!$A$4:$O$40,8,FALSE) -> 0.8 | J8: =VLOOKUP($K$2,'Rainfall Data'!$A$4:$O$40,9,FALSE) -> 0.9 | K8: =VLOOKUP($K$2,'Rainfall Data'!$A$4:$O$40,10,FALSE) -> 1.4 | L8: =VLOOKUP($K$2,'Rainfall Data'!$A$4:$O$40,11,FALSE) -> 2.7 | M8: =VLOOKUP($K$2,'Rainfall Data'!$A$4:$O$40,12,FALSE) -> 4 | N8: =VLOOKUP($K$2,'Rainfall Data'!$A$4:$O$40,13,FALSE) -> 2.8 | O8: =SUM(CheckList1[[#This Row],[JAN]:[DEC]]) -> 25.1 | S8: Long Beach | T8: 0 | U8: =IF(T8=1,COUNTIF($T$3:T8,1),"") ->  | V8: =IFERROR(INDEX($S$3:$S$21,MATCH(ROWS($U$3:U8),$U$3:$U$21,0)),"") ->  | W8: =IFERROR(INDEX($S$3:$S$21,MATCH(ROWS($U$3:V8),$U$3:$U$21,0)),"") ->  | X8: =IFERROR(INDEX($S$3:$S$21,MATCH(ROWS($U$3:U8),$U$3:$U$21,0)),"") ->  | Z8: =$V$3:INDEX($V$3:$V$21,MAX($U$3:$U$21),1) -> Friday Harbor, San Juan Island
B9: mm to Inches & inches to Gallon | C9: =C8*(7.49/12) -> 2.6215 | D9: =D8*(7.49/12) -> 1.31075 | E9: 1.248333333 | F9: 0.9986666667 | G9: 0.93625 | H9: 0.6865833333 | I9: 0.4993333333 | J9: 0.56175 | K9: 0.8738333333 | L9: 1.68525 | M9: 2.496666667 | N9: 1.747666667 | O9: =SUM(CheckList1[[#This Row],[JAN]:[DEC]]) -> 15.66658333 | S9: Port Angeles | T9: 0 | U9: =IF(T9=1,COUNTIF($T$3:T9,1),"") ->  | V9: =IFERROR(INDEX($S$3:$S$21,MATCH(ROWS($U$3:U9),$U$3:$U$21,0)),"") ->  | W9: =IFERROR(INDEX($S$3:$S$21,MATCH(ROWS($U$3:V9),$U$3:$U$21,0)),"") ->  | X9: =IFERROR(INDEX($S$3:$S$21,MATCH(ROWS($U$3:U9),$U$3:$U$21,0)),"") ->  | Z9: =$V$3:INDEX($V$3:$V$21,MAX($U$3:$U$21),1) -> Friday Harbor, San Juan Island
B10: Precipitation Received from Roof (US gals) | C10: =($C$36*C9)*$C$37 -> 5898.375 | D10: 2949.1875 | E10: 2808.75 | F10: 2247 | G10: 2106.5625 | H10: 1544.8125 | I10: 1123.5 | J10: 1263.9375 | K10: 1966.125 | L10: 3791.8125 | M10: 5617.5 | N10: 3932.25 | O10: =SUM(CheckList1[[#This Row],[JAN]:[DEC]]) -> 35249.8125 | S10: Anacortes | T10: 0 | U10: =IF(T10=1,COUNTIF($T$3:T10,1),"") ->  | V10: =IFERROR(INDEX($S$3:$S$21,MATCH(ROWS($U$3:U10),$U$3:$U$21,0)),"") ->  | W10: =IFERROR(INDEX($S$3:$S$21,MATCH(ROWS($U$3:V10),$U$3:$U$21,0)),"") ->  | X10: =IFERROR(INDEX($S$3:$S$21,MATCH(ROWS($U$3:U10),$U$3:$U$21,0)),"") ->  | Z10: =$V$3:INDEX($V$3:$V$21,MAX($U$3:$U$21),1) -> Friday Harbor, San Juan Island
B11: Start of Month in Storage (US gals) (Last Dec.) | D11: =IF(C17>0,(C17),(0)) -> 3398.375 | E11: =IF(D17>0,(D17),(0)) -> 3847.5625 | F11: 4156.3125 | G11: 3903.3125 | H11: 3509.875 | I11: 1554.6875 | J11: 0 | K11: 0 | L11: 0 | M11: 0 | N11: 3117.5 | S11: Bellingham | T11: 0 | U11: =IF(T11=1,COUNTIF($T$3:T11,1),"") ->  | V11: =IFERROR(INDEX($S$3:$S$21,MATCH(ROWS($U$3:U11),$U$3:$U$21,0)),"") ->  | W11: =IFERROR(INDEX($S$3:$S$21,MATCH(ROWS($U$3:V11),$U$3:$U$21,0)),"") ->  | X11: =IFERROR(INDEX($S$3:$S$21,MATCH(ROWS($U$3:U11),$U$3:$U$21,0)),"") ->  | Z11: =$V$3:INDEX($V$3:$V$21,MAX($U$3:$U$21),1) -> Friday Harbor, San Juan Island
B12: Household Usage (US gals) | C12: 2500 | D12: 2500 | E12: 2500 | F12: 2500 | G12: 2500 | H12: 2500 | I12: 2500 | J12: 2500 | K12: 2500 | L12: 2500 | M12: 2500 | N12: 2500 | O12: =SUM(CheckList1[[#This Row],[JAN]:[DEC]]) -> 30000 | S12: Bremerton | T12: 0 | U12: =IF(T12=1,COUNTIF($T$3:T12,1),"") ->  | V12: =IFERROR(INDEX($S$3:$S$21,MATCH(ROWS($U$3:U12),$U$3:$U$21,0)),"") ->  | W12: =IFERROR(INDEX($S$3:$S$21,MATCH(ROWS($U$3:V12),$U$3:$U$21,0)),"") ->  | X12: =IFERROR(INDEX($S$3:$S$21,MATCH(ROWS($U$3:U12),$U$3:$U$21,0)),"") ->  | Z12: =$V$3:INDEX($V$3:$V$21,MAX($U$3:$U$21),1) -> Friday Harbor, San Juan Island
B13: Irrigation/Outside Usage (US gals) | H13: 1000 | I13: 2000 | J13: 2000 | K13: 2000 | L13: 1500 | O13: =SUM(CheckList1[[#This Row],[JAN]:[DEC]]) -> 8500 | S13: Everett | T13: 0 | U13: =IF(T13=1,COUNTIF($T$3:T13,1),"") ->  | V13: =IFERROR(INDEX($S$3:$S$21,MATCH(ROWS($U$3:U13),$U$3:$U$21,0)),"") ->  | W13: =IFERROR(INDEX($S$3:$S$21,MATCH(ROWS($U$3:V13),$U$3:$U$21,0)),"") ->  | X13: =IFERROR(INDEX($S$3:$S$21,MATCH(ROWS($U$3:U13),$U$3:$U$21,0)),"") ->  | Z13: =$V$3:INDEX($V$3:$V$21,MAX($U$3:$U$21),1) -> Friday Harbor, San Juan Island
B14: Total Usage (US gals) | C14: =C13+C12 -> 2500 | D14: =D13+D12 -> 2500 | E14: 2500 | F14: 2500 | G14: 2500 | H14: 3500 | I14: 4500 | J14: 4500 | K14: 4500 | L14: 4000 | M14: 2500 | N14: 2500 | O14: =SUM(CheckList1[[#This Row],[JAN]:[DEC]]) -> 38500 | S14: Longview | T14: 0 | U14: =IF(T14=1,COUNTIF($T$3:T14,1),"") ->  | V14: =IFERROR(INDEX($S$3:$S$21,MATCH(ROWS($U$3:U14),$U$3:$U$21,0)),"") ->  | W14: =IFERROR(INDEX($S$3:$S$21,MATCH(ROWS($U$3:V14),$U$3:$U$21,0)),"") ->  | X14: =IFERROR(INDEX($S$3:$S$21,MATCH(ROWS($U$3:U14),$U$3:$U$21,0)),"") ->  | Z14: =$V$3:INDEX($V$3:$V$21,MAX($U$3:$U$21),1) -> Friday Harbor, San Juan Island
B15: End of Month (no Storage Limit) (imp gals) | C15: =C10+C11-C14 -> 3398.375 | D15: 3847.5625 | E15: 4156.3125 | F15: 3903.3125 | G15: 3509.875 | H15: 1554.6875 | I15: -1821.8125 | J15: -3236.0625 | K15: -2533.875 | L15: -208.1875 | M15: 3117.5 | N15: 4549.75 | P15: =SUM(CheckList1[[#This Row],[JAN]:[DEC]]) -> 20237.4375 | S15: Olga, Orcas Island | T15: 0 | U15: =IF(T15=1,COUNTIF($T$3:T15,1),"") ->  | V15: =IFERROR(INDEX($S$3:$S$21,MATCH(ROWS($U$3:U15),$U$3:$U$21,0)),"") ->  | W15: =IFERROR(INDEX($S$3:$S$21,MATCH(ROWS($U$3:V15),$U$3:$U$21,0)),"") ->  | X15: =IFERROR(INDEX($S$3:$S$21,MATCH(ROWS($U$3:U15),$U$3:$U$21,0)),"") ->  | Z15: =$V$3:INDEX($V$3:$V$21,MAX($U$3:$U$21),1) -> Friday Harbor, San Juan Island
B16: Overflow Volume - wastage (imp gals) | C16: =C15-C17 -> 0 | D16: =D15-D17 -> 0 | E16: 0 | F16: 0 | G16: 0 | H16: 0 | I16: 0 | J16: 0 | K16: 0 | L16: 0 | M16: 0 | N16: 0 | O16: =SUM(CheckList1[[#This Row],[JAN]:[DEC]]) -> 0
B17: End of Month in Storage (US gals) (make-up) | C17: =IF(C15>$C$35,($C$35),(C15)) -> 3398.375 | D17: 3847.5625 | E17: 4156.3125 | F17: 3903.3125 | G17: 3509.875 | H17: 1554.6875 | I17: -1821.8125 | J17: -3236.0625 | K17: -2533.875 | L17: -208.1875 | M17: 3117.5 | N17: 4549.75 | P17: =SUM(CheckList1[[#This Row],[JAN]:[DEC]]) -> 20237.4375 | S17: Olympia | T17: 0 | U17: =IF(T17=1,COUNTIF($T$3:T17,1),"") ->  | V17: =IFERROR(INDEX($S$3:$S$21,MATCH(ROWS($U$3:U17),$U$3:$U$21,0)),"") ->  | W17: =IFERROR(INDEX($S$3:$S$21,MATCH(ROWS($U$3:V17),$U$3:$U$21,0)),"") ->  | X17: =IFERROR(INDEX($S$3:$S$21,MATCH(ROWS($U$3:U17),$U$3:$U$21,0)),"") ->  | Z17: =$V$3:INDEX($V$3:$V$21,MAX($U$3:$U$21),1) -> Friday Harbor, San Juan Island
B18: ANNUAL OVERFLOW VOLUME (WASTAGE) | C18: =100%-((O10-(P15-P17))/O10) -> 0 | S18: Port Townsend | T18: 0 | U18: =IF(T18=1,COUNTIF($T$3:T18,1),"") ->  | V18: =IFERROR(INDEX($S$3:$S$21,MATCH(ROWS($U$3:U18),$U$3:$U$21,0)),"") ->  | W18: =IFERROR(INDEX($S$3:$S$21,MATCH(ROWS($U$3:V18),$U$3:$U$21,0)),"") ->  | X18: =IFERROR(INDEX($S$3:$S$21,MATCH(ROWS($U$3:U18),$U$3:$U$21,0)),"") ->  | Z18: =$V$3:INDEX($V$3:$V$21,MAX($U$3:$U$21),1) -> Friday Harbor, San Juan Island
B19: ANNUAL MAKE-UP WATER (SHORTFALL) | C19: =(IF(C15<0,($C15),(0))+IF(D15<0,($D15),(0))+IF(E15<0,($E15),(0))+IF(F15<0,($F15),(0))+IF(G15<0,($G15),(0))+IF(H15<0,($H15),(0))+IF(I15<0,($I15),(0))+IF(J15<0,($J15),(0))+IF(K15<0,($K15),(0))+IF(L15<0,($L15),(0))+IF(M15<0,($M15),(0))+IF(N15<0,($N15),(0)))/O14 -> -0.2025957792 | S19: Seattle | T19: 0 | U19: =IF(T19=1,COUNTIF($T$3:T19,1),"") ->  | V19: =IFERROR(INDEX($S$3:$S$21,MATCH(ROWS($U$3:U19),$U$3:$U$21,0)),"") ->  | W19: =IFERROR(INDEX($S$3:$S$21,MATCH(ROWS($U$3:V19),$U$3:$U$21,0)),"") ->  | X19: =IFERROR(INDEX($S$3:$S$21,MATCH(ROWS($U$3:U19),$U$3:$U$21,0)),"") ->  | Z19: =$V$3:INDEX($V$3:$V$21,MAX($U$3:$U$21),1) -> Friday Harbor, San Juan Island
S20: Tacoma | T20: 0 | U20: =IF(T20=1,COUNTIF($T$3:T20,1),"") ->  | V20: =IFERROR(INDEX($S$3:$S$21,MATCH(ROWS($U$3:U20),$U$3:$U$21,0)),"") ->  | W20: =IFERROR(INDEX($S$3:$S$21,MATCH(ROWS($U$3:V20),$U$3:$U$21,0)),"") ->  | X20: =IFERROR(INDEX($S$3:$S$21,MATCH(ROWS($U$3:U20),$U$3:$U$21,0)),"") ->  | Z20: =$V$3:INDEX($V$3:$V$21,MAX($U$3:$U$21),1) -> Friday Harbor, San Juan Island
S21: Darrington | T21: 0 | U21: =IF(T21=1,COUNTIF($T$3:T21,1),"") ->  | V21: =IFERROR(INDEX($S$3:$S$21,MATCH(ROWS($U$3:U21),$U$3:$U$21,0)),"") ->  | W21: =IFERROR(INDEX($S$3:$S$21,MATCH(ROWS($U$3:V21),$U$3:$U$21,0)),"") ->  | X21: =IFERROR(INDEX($S$3:$S$21,MATCH(ROWS($U$3:U21),$U$3:$U$21,0)),"") ->  | Z21: =$V$3:INDEX($V$3:$V$21,MAX($U$3:$U$21),1) -> Friday Harbor, San Juan Island
B22: Washington State Precipitation (Inches) | C22: =VLOOKUP($K$2,'Rainfall Data'!$A$4:$O$40,2,FALSE) -> 4.2 | D22: =VLOOKUP($K$2,'Rainfall Data'!$A$4:$O$40,3,FALSE) -> 2.1 | E22: =VLOOKUP($K$2,'Rainfall Data'!$A$4:$O$40,4,FALSE) -> 2 | F22: =VLOOKUP($K$2,'Rainfall Data'!$A$4:$O$40,5,FALSE) -> 1.6 | G22: =VLOOKUP($K$2,'Rainfall Data'!$A$4:$O$40,6,FALSE) -> 1.5 | H22: =VLOOKUP($K$2,'Rainfall Data'!$A$4:$O$40,7,FALSE) -> 1.1 | I22: =VLOOKUP($K$2,'Rainfall Data'!$A$4:$O$40,8,FALSE) -> 0.8 | J22: =VLOOKUP($K$2,'Rainfall Data'!$A$4:$O$40,9,FALSE) -> 0.9 | K22: =VLOOKUP($K$2,'Rainfall Data'!$A$4:$O$40,10,FALSE) -> 1.4 | L22: =VLOOKUP($K$2,'Rainfall Data'!$A$4:$O$40,11,FALSE) -> 2.7 | M22: =VLOOKUP($K$2,'Rainfall Data'!$A$4:$O$40,12,FALSE) -> 4 | N22: =VLOOKUP($K$2,'Rainfall Data'!$A$4:$O$40,13,FALSE) -> 2.8 | O22: =SUM(C22:N22) -> 25.1 | S22: Long Beach | T22: =--ISNUMBER(IFERROR(SEARCH($K$2,S22,1),"")) -> 0 | U22: =IF(T22=1,COUNTIF($T$3:T22,1),"") ->  | V22: =IFERROR(INDEX($S$3:$S$21,MATCH(ROWS($U$3:U22),$U$3:$U$21,0)),"") ->  | W22: =IFERROR(INDEX($S$3:$S$21,MATCH(ROWS($U$3:V22),$U$3:$U$21,0)),"") ->  | X22: =IFERROR(INDEX($S$3:$S$21,MATCH(ROWS($U$3:U22),$U$3:$U$21,0)),"") ->  | Z22: =$V$3:INDEX($V$3:$V$21,MAX($U$3:$U$21),1) -> Friday Harbor, San Juan Island
B23: mm to Inches & inches to Gallon | C23: =C22*(7.49/12) -> 2.6215 | D23: =D22*(7.49/12) -> 1.31075 | E23: 1.248333333 | F23: 0.9986666667 | G23: 0.93625 | H23: 0.6865833333 | I23: 0.4993333333 | J23: 0.56175 | K23: 0.8738333333 | L23: 1.68525 | M23: 2.496666667 | N23: 1.747666667 | O23: =SUM(C23:N23) -> 15.66658333 | S23: Port Angeles | T23: 0 | U23: =IF(T23=1,COUNTIF($T$3:T23,1),"") ->  | V23: =IFERROR(INDEX($S$3:$S$21,MATCH(ROWS($U$3:U23),$U$3:$U$21,0)),"") ->  | W23: =IFERROR(INDEX($S$3:$S$21,MATCH(ROWS($U$3:V23),$U$3:$U$21,0)),"") ->  | X23: =IFERROR(INDEX($S$3:$S$21,MATCH(ROWS($U$3:U23),$U$3:$U$21,0)),"") ->  | Z23: =$V$3:INDEX($V$3:$V$21,MAX($U$3:$U$21),1) -> Friday Harbor, San Juan Island
C24: OUTPUTS | S24: Forks | T24: 0 | U24: =IF(T24=1,COUNTIF($T$3:T24,1),"") ->  | V24: =IFERROR(INDEX($S$3:$S$21,MATCH(ROWS($U$3:U24),$U$3:$U$21,0)),"") ->  | W24: =IFERROR(INDEX($S$3:$S$21,MATCH(ROWS($U$3:V24),$U$3:$U$21,0)),"") ->  | X24: =IFERROR(INDEX($S$3:$S$21,MATCH(ROWS($U$3:U24),$U$3:$U$21,0)),"") ->  | Z24: =$V$3:INDEX($V$3:$V$21,MAX($U$3:$U$21),1) -> Friday Harbor, San Juan Island
B25: MONTH | C25: JAN | D25: FEB | E25: MAR | F25: APR | G25: MAY | H25: JUN | I25: JUL | J25: AUG | K25: SEPT | L25: OCT | M25: NOV | N25: DEC | O25: TOTAL | P25: Column1 | S25: Grayland | T25: 0 | U25: =IF(T25=1,COUNTIF($T$3:T25,1),"") ->  | V25: =IFERROR(INDEX($S$3:$S$21,MATCH(ROWS($U$3:U25),$U$3:$U$21,0)),"") ->  | W25: =IFERROR(INDEX($S$3:$S$21,MATCH(ROWS($U$3:V25),$U$3:$U$21,0)),"") ->  | X25: =IFERROR(INDEX($S$3:$S$21,MATCH(ROWS($U$3:U25),$U$3:$U$21,0)),"") ->  | Z25: =$V$3:INDEX($V$3:$V$21,MAX($U$3:$U$21),1) -> Friday Harbor, San Juan Island
B26: Precipitation Received from Roof (US gals) | C26: =($C$36*C23)*$C$37 -> 5898.375 | D26: 2949.1875 | E26: 2808.75 | F26: 2247 | G26: 2106.5625 | H26: 1544.8125 | I26: 1123.5 | J26: 1263.9375 | K26: 1966.125 | L26: 3791.8125 | M26: 5617.5 | N26: 3932.25 | O26: 35249.8125 | S26: Anacortes | T26: 0 | U26: =IF(T26=1,COUNTIF($T$3:T26,1),"") ->  | V26: =IFERROR(INDEX($S$3:$S$21,MATCH(ROWS($U$3:U26),$U$3:$U$21,0)),"") ->  | W26: =IFERROR(INDEX($S$3:$S$21,MATCH(ROWS($U$3:V26),$U$3:$U$21,0)),"") ->  | X26: =IFERROR(INDEX($S$3:$S$21,MATCH(ROWS($U$3:U26),$U$3:$U$21,0)),"") ->  | Z26: =$V$3:INDEX($V$3:$V$21,MAX($U$3:$U$21),1) -> Friday Harbor, San Juan Island
B27: Start of Month in Storage (US gals) (Last Dec.) | C27: =N17 -> 4549.75 | D27: =IF(C33>0,(C33),(0)) -> 6000 | E27: =IF(D33>0,(D33),(0)) -> 6000 | F27: =IF(E33>0,(E33),(0)) -> 6000 | G27: =IF(F33>0,(F33),(0)) -> 5747 | H27: =IF(G33>0,(G33),(0)) -> 5353.5625 | I27: =IF(H33>0,(H33),(0)) -> 3398.375 | J27: =IF(I33>0,(I33),(0)) -> 21.875 | K27: =IF(J33>0,(J33),(0)) -> 0 | L27: =IF(K33>0,(K33),(0)) -> 0 | M27: =IF(L33>0,(L33),(0)) -> 0 | N27: =IF(M33>0,(M33),(0)) -> 3117.5 | S27: Bellingham | T27: 0 | U27: =IF(T27=1,COUNTIF($T$3:T27,1),"") ->  | V27: =IFERROR(INDEX($S$3:$S$21,MATCH(ROWS($U$3:U27),$U$3:$U$21,0)),"") ->  | W27: =IFERROR(INDEX($S$3:$S$21,MATCH(ROWS($U$3:V27),$U$3:$U$21,0)),"") ->  | X27: =IFERROR(INDEX($S$3:$S$21,MATCH(ROWS($U$3:U27),$U$3:$U$21,0)),"") ->  | Z27: =$V$3:INDEX($V$3:$V$21,MAX($U$3:$U$21),1) -> Friday Harbor, San Juan Island
B28: Household Usage (US gals) | C28: 2500 | D28: 2500 | E28: 2500 | F28: 2500 | G28: 2500 | H28: 2500 | I28: 2500 | J28: 2500 | K28: 2500 | L28: 2500 | M28: 2500 | N28: 2500 | O28: 30000 | S28: Bremerton | T28: 0 | U28: =IF(T28=1,COUNTIF($T$3:T28,1),"") ->  | V28: =IFERROR(INDEX($S$3:$S$21,MATCH(ROWS($U$3:U28),$U$3:$U$21,0)),"") ->  | W28: =IFERROR(INDEX($S$3:$S$21,MATCH(ROWS($U$3:V28),$U$3:$U$21,0)),"") ->  | X28: =IFERROR(INDEX($S$3:$S$21,MATCH(ROWS($U$3:U28),$U$3:$U$21,0)),"") ->  | Z28: =$V$3:INDEX($V$3:$V$21,MAX($U$3:$U$21),1) -> Friday Harbor, San Juan Island
B29: Irrigation/Outside Usage (US gals) | H29: 1000 | I29: 2000 | J29: 2000 | K29: 2000 | L29: 1500 | O29: 8500 | S29: Everett | T29: 0 | U29: =IF(T29=1,COUNTIF($T$3:T29,1),"") ->  | V29: =IFERROR(INDEX($S$3:$S$21,MATCH(ROWS($U$3:U29),$U$3:$U$21,0)),"") ->  | W29: =IFERROR(INDEX($S$3:$S$21,MATCH(ROWS($U$3:V29),$U$3:$U$21,0)),"") ->  | X29: =IFERROR(INDEX($S$3:$S$21,MATCH(ROWS($U$3:U29),$U$3:$U$21,0)),"") ->  | Z29: =$V$3:INDEX($V$3:$V$21,MAX($U$3:$U$21),1) -> Friday Harbor, San Juan Island
B30: Total Usage (US gals) | C30: =C29+C28 -> 2500 | D30: =D29+D28 -> 2500 | E30: 2500 | F30: 2500 | G30: 2500 | H30: 3500 | I30: 4500 | J30: 4500 | K30: 4500 | L30: 4000 | M30: 2500 | N30: 2500 | O30: 38500 | S30: Longview | T30: 0 | U30: =IF(T30=1,COUNTIF($T$3:T30,1),"") ->  | V30: =IFERROR(INDEX($S$3:$S$21,MATCH(ROWS($U$3:U30),$U$3:$U$21,0)),"") ->  | W30: =IFERROR(INDEX($S$3:$S$21,MATCH(ROWS($U$3:V30),$U$3:$U$21,0)),"") ->  | X30: =IFERROR(INDEX($S$3:$S$21,MATCH(ROWS($U$3:U30),$U$3:$U$21,0)),"") ->  | Z30: =$V$3:INDEX($V$3:$V$21,MAX($U$3:$U$21),1) -> Friday Harbor, San Juan Island
B31: End of Month (no Storage Limit) (imp gals) | C31: =C26+C27-C30 -> 7948.125 | D31: 6449.1875 | E31: 6308.75 | F31: 5747 | G31: 5353.5625 | H31: 3398.375 | I31: 21.875 | J31: -3214.1875 | K31: -2533.875 | L31: -208.1875 | M31: 3117.5 | N31: 4549.75 | P31: =SUM(C31:N31) -> 36937.875 | S31: Olga, Orcas Island | T31: 0 | U31: =IF(T31=1,COUNTIF($T$3:T31,1),"") ->  | V31: =IFERROR(INDEX($S$3:$S$21,MATCH(ROWS($U$3:U31),$U$3:$U$21,0)),"") ->  | W31: =IFERROR(INDEX($S$3:$S$21,MATCH(ROWS($U$3:V31),$U$3:$U$21,0)),"") ->  | X31: =IFERROR(INDEX($S$3:$S$21,MATCH(ROWS($U$3:U31),$U$3:$U$21,0)),"") ->  | Z31: =$V$3:INDEX($V$3:$V$21,MAX($U$3:$U$21),1) -> Friday Harbor, San Juan Island
B32: Overflow Volume - wastage (imp gals) | C32: =C31-C33 -> 1948.125 | D32: =D31-D33 -> 449.1875 | E32: 308.75 | F32: 0 | G32: 0 | H32: 0 | I32: 0 | J32: 0 | K32: 0 | L32: 0 | M32: 0 | N32: 0 | O32: 2706.0625
B33: End of Month in Storage (US gals) (make-up) | C33: =IF(C31>$C$35,($C$35),(C31)) -> 6000 | D33: 6000 | E33: 6000 | F33: 5747 | G33: 5353.5625 | H33: 3398.375 | I33: 21.875 | J33: -3214.1875 | K33: -2533.875 | L33: -208.1875 | M33: 3117.5 | N33: 4549.75 | P33: =SUM(C33:N33) -> 34231.8125 | S33: Olympia | T33: =--ISNUMBER(IFERROR(SEARCH($K$2,S33,1),"")) -> 0 | U33: =IF(T33=1,COUNTIF($T$3:T33,1),"") ->  | V33: =IFERROR(INDEX($S$3:$S$21,MATCH(ROWS($U$3:U33),$U$3:$U$21,0)),"") ->  | W33: =IFERROR(INDEX($S$3:$S$21,MATCH(ROWS($U$3:V33),$U$3:$U$21,0)),"") ->  | X33: =IFERROR(INDEX($S$3:$S$21,MATCH(ROWS($U$3:U33),$U$3:$U$21,0)),"") ->  | Z33: =$V$3:INDEX($V$3:$V$21,MAX($U$3:$U$21),1) -> Friday Harbor, San Juan Island
S34: Tacoma | T34: 0 | U34: =IF(T34=1,COUNTIF($T$3:T34,1),"") ->  | V34: =IFERROR(INDEX($S$3:$S$21,MATCH(ROWS($U$3:U34),$U$3:$U$21,0)),"") ->  | W34: =IFERROR(INDEX($S$3:$S$21,MATCH(ROWS($U$3:V34),$U$3:$U$21,0)),"") ->  | X34: =IFERROR(INDEX($S$3:$S$21,MATCH(ROWS($U$3:U34),$U$3:$U$21,0)),"") ->  | Z34: =$V$3:INDEX($V$3:$V$21,MAX($U$3:$U$21),1) -> Friday Harbor, San Juan Island
B35: SELECTED TANK CAPACITY (US GALS) | C35: 6000 | S35: Vancouver | T35: =--ISNUMBER(IFERROR(SEARCH($K$2,S35,1),"")) -> 0 | U35: =IF(T35=1,COUNTIF($T$3:T35,1),"") ->  | V35: =IFERROR(INDEX($S$3:$S$21,MATCH(ROWS($U$3:U35),$U$3:$U$21,0)),"") ->  | W35: =IFERROR(INDEX($S$3:$S$21,MATCH(ROWS($U$3:V35),$U$3:$U$21,0)),"") ->  | X35: =IFERROR(INDEX($S$3:$S$21,MATCH(ROWS($U$3:U35),$U$3:$U$21,0)),"") ->  | Z35: =$V$3:INDEX($V$3:$V$21,MAX($U$3:$U$21),1) -> Friday Harbor, San Juan Island
B36: ROOF AREA (SQFT) | C36: 2500 | S36: Baker Lake Dam | T36: =--ISNUMBER(IFERROR(SEARCH($K$2,S36,1),"")) -> 0 | U36: =IF(T36=1,COUNTIF($T$3:T36,1),"") ->  | V36: =IFERROR(INDEX($S$3:$S$21,MATCH(ROWS($U$3:U36),$U$3:$U$21,0)),"") ->  | W36: =IFERROR(INDEX($S$3:$S$21,MATCH(ROWS($U$3:V36),$U$3:$U$21,0)),"") ->  | X36: =IFERROR(INDEX($S$3:$S$21,MATCH(ROWS($U$3:U36),$U$3:$U$21,0)),"") ->  | Z36: =$V$3:INDEX($V$3:$V$21,MAX($U$3:$U$21),1) -> Friday Harbor, San Juan Island
B37: ROOF EFFICIENCY | C37: 0.9 | S37: Baring | T37: =--ISNUMBER(IFERROR(SEARCH($K$2,S37,1),"")) -> 0 | U37: =IF(T37=1,COUNTIF($T$3:T37,1),"") ->  | V37: =IFERROR(INDEX($S$3:$S$21,MATCH(ROWS($U$3:U37),$U$3:$U$21,0)),"") ->  | W37: =IFERROR(INDEX($S$3:$S$21,MATCH(ROWS($U$3:V37),$U$3:$U$21,0)),"") ->  | X37: =IFERROR(INDEX($S$3:$S$21,MATCH(ROWS($U$3:U37),$U$3:$U$21,0)),"") ->  | Z37: =$V$3:INDEX($V$3:$V$21,MAX($U$3:$U$21),1) -> Friday Harbor, San Juan Island
S38: Tacoma | T38: =--ISNUMBER(IFERROR(SEARCH($K$2,S38,1),"")) -> 0 | U38: =IF(T38=1,COUNTIF($T$3:T38,1),"") ->  | V38: =IFERROR(INDEX($S$3:$S$21,MATCH(ROWS($U$3:U38),$U$3:$U$21,0)),"") ->  | W38: =IFERROR(INDEX($S$3:$S$21,MATCH(ROWS($U$3:V38),$U$3:$U$21,0)),"") ->  | X38: =IFERROR(INDEX($S$3:$S$21,MATCH(ROWS($U$3:U38),$U$3:$U$21,0)),"") ->  | Z38: =$V$3:INDEX($V$3:$V$21,MAX($U$3:$U$21),1) -> Friday Harbor, San Juan Island
B39: ANNUAL OVERFLOW VOLUME (WASTAGE) | C39: =100%-((O26-(P31-P33))/O26) -> 0.07676813884 | S39: Port Townsend | T39: 0 | U39: =IF(T39=1,COUNTIF($T$3:T39,1),"") ->  | V39: =IFERROR(INDEX($S$3:$S$21,MATCH(ROWS($U$3:U39),$U$3:$U$21,0)),"") ->  | W39: =IFERROR(INDEX($S$3:$S$21,MATCH(ROWS($U$3:V39),$U$3:$U$21,0)),"") ->  | X39: =IFERROR(INDEX($S$3:$S$21,MATCH(ROWS($U$3:U39),$U$3:$U$21,0)),"") ->  | Z39: =$V$3:INDEX($V$3:$V$21,MAX($U$3:$U$21),1) -> Friday Harbor, San Juan Island
B40: ANNUAL MAKE-UP WATER (SHORTFALL) | C40: =(IF(C31<0,($C31),(0))+IF(D31<0,($D31),(0))+IF(E31<0,($E31),(0))+IF(F31<0,($F31),(0))+IF(G31<0,($G31),(0))+IF(H31<0,($H31),(0))+IF(I31<0,($I31),(0))+IF(J31<0,($J31),(0))+IF(K31<0,($K31),(0))+IF(L31<0,($L31),(0))+IF(M31<0,($M31),(0))+IF(N31<0,($N31),(0)))/O30 -> -0.1547077922 | S40: Seattle | T40: 0 | U40: =IF(T40=1,COUNTIF($T$3:T40,1),"") ->  | V40: =IFERROR(INDEX($S$3:$S$21,MATCH(ROWS($U$3:U40),$U$3:$U$21,0)),"") ->  | W40: =IFERROR(INDEX($S$3:$S$21,MATCH(ROWS($U$3:V40),$U$3:$U$21,0)),"") ->  | X40: =IFERROR(INDEX($S$3:$S$21,MATCH(ROWS($U$3:U40),$U$3:$U$21,0)),"") ->  | Z40: =$V$3:INDEX($V$3:$V$21,MAX($U$3:$U$21),1) -> Friday Harbor, San Juan Island
B42: Notes: | S42: Bonavista | T42: =--ISNUMBER(IFERROR(SEARCH($K$2,S42,1),"")) -> 0 | U42: =IF(T42=1,COUNTIF($T$3:T42,1),"") ->  | V42: =IFERROR(INDEX($S$3:$S$271,MATCH(ROWS($U$3:U42),$U$3:$U$271,0)),"") ->  | W42: =IFERROR(INDEX($S$3:$S$271,MATCH(ROWS($U$3:V42),$U$3:$U$271,0)),"") ->  | X42: =IFERROR(INDEX($S$3:$S$271,MATCH(ROWS($U$3:U42),$U$3:$U$271,0)),"") ->  | Z42: =$V$3:INDEX($V$3:$V$271,MAX($U$3:$U$271),1) -> Friday Harbor, San Juan Island
B43: - Performance based on monthly averages. | S43: Brandon | T43: 0 | U43: =IF(T43=1,COUNTIF($T$3:T43,1),"") ->  | V43: =IFERROR(INDEX($S$3:$S$271,MATCH(ROWS($U$3:U43),$U$3:$U$271,0)),"") ->  | W43: =IFERROR(INDEX($S$3:$S$271,MATCH(ROWS($U$3:V43),$U$3:$U$271,0)),"") ->  | X43: =IFERROR(INDEX($S$3:$S$271,MATCH(ROWS($U$3:U43),$U$3:$U$271,0)),"") ->  | Z43: =$V$3:INDEX($V$3:$V$271,MAX($U$3:$U$271),1) -> Friday Harbor, San Juan Island
B44: - Bracketed numbers indicate rainwater shortfall | S44: Brantford | T44: 0 | U44: =IF(T44=1,COUNTIF($T$3:T44,1),"") ->  | V44: =IFERROR(INDEX($S$3:$S$271,MATCH(ROWS($U$3:U44),$U$3:$U$271,0)),"") ->  | W44: =IFERROR(INDEX($S$3:$S$271,MATCH(ROWS($U$3:V44),$U$3:$U$271,0)),"") ->  | X44: =IFERROR(INDEX($S$3:$S$271,MATCH(ROWS($U$3:U44),$U$3:$U$271,0)),"") ->  | Z44: =$V$3:INDEX($V$3:$V$271,MAX($U$3:$U$271),1) -> Friday Harbor, San Juan Island
B45: - Precipitation includes snowfall | S45: Bridgewater | T45: 0 | U45: =IF(T45=1,COUNTIF($T$3:T45,1),"") ->  | V45: =IFERROR(INDEX($S$3:$S$271,MATCH(ROWS($U$3:U45),$U$3:$U$271,0)),"") ->  | W45: =IFERROR(INDEX($S$3:$S$271,MATCH(ROWS($U$3:V45),$U$3:$U$271,0)),"") ->  | X45: =IFERROR(INDEX($S$3:$S$271,MATCH(ROWS($U$3:U45),$U$3:$U$271,0)),"") ->  | Z45: =$V$3:INDEX($V$3:$V$271,MAX($U$3:$U$271),1) -> Friday Harbor, San Juan Island
B46: - Useful links: | S46: Brooks | T46: 0 | U46: =IF(T46=1,COUNTIF($T$3:T46,1),"") ->  | V46: =IFERROR(INDEX($S$3:$S$271,MATCH(ROWS($U$3:U46),$U$3:$U$271,0)),"") ->  | W46: =IFERROR(INDEX($S$3:$S$271,MATCH(ROWS($U$3:V46),$U$3:$U$271,0)),"") ->  | X46: =IFERROR(INDEX($S$3:$S$271,MATCH(ROWS($U$3:U46),$U$3:$U$271,0)),"") ->  | Z46: =$V$3:INDEX($V$3:$V$271,MAX($U$3:$U$271),1) -> Friday Harbor, San Juan Island
B47: *Rainwater Guide for Homeowners - CMHC | S47: Buctouche | T47: 0 | U47: =IF(T47=1,COUNTIF($T$3:T47,1),"") ->  | V47: =IFERROR(INDEX($S$3:$S$271,MATCH(ROWS($U$3:U47),$U$3:$U$271,0)),"") ->  | W47: =IFERROR(INDEX($S$3:$S$271,MATCH(ROWS($U$3:V47),$U$3:$U$271,0)),"") ->  | X47: =IFERROR(INDEX($S$3:$S$271,MATCH(ROWS($U$3:U47),$U$3:$U$271,0)),"") ->  | Z47: =$V$3:INDEX($V$3:$V$271,MAX($U$3:$U$271),1) -> Friday Harbor, San Juan Island
B48: *Irrigation Discussion | S48: Buffalo Narrows | T48: 0 | U48: =IF(T48=1,COUNTIF($T$3:T48,1),"") ->  | V48: =IFERROR(INDEX($S$3:$S$271,MATCH(ROWS($U$3:U48),$U$3:$U$271,0)),"") ->  | W48: =IFERROR(INDEX($S$3:$S$271,MATCH(ROWS($U$3:V48),$U$3:$U$271,0)),"") ->  | X48: =IFERROR(INDEX($S$3:$S$271,MATCH(ROWS($U$3:U48),$U$3:$U$271,0)),"") ->  | Z48: =$V$3:INDEX($V$3:$V$271,MAX($U$3:$U$271),1) -> Friday Harbor, San Juan Island
B49: *Irrigation Calculator | S49: Burgeo | T49: 0 | U49: =IF(T49=1,COUNTIF($T$3:T49,1),"") ->  | V49: =IFERROR(INDEX($S$3:$S$271,MATCH(ROWS($U$3:U49),$U$3:$U$271,0)),"") ->  | W49: =IFERROR(INDEX($S$3:$S$271,MATCH(ROWS($U$3:V49),$U$3:$U$271,0)),"") ->  | X49: =IFERROR(INDEX($S$3:$S$271,MATCH(ROWS($U$3:U49),$U$3:$U$271,0)),"") ->  | Z49: =$V$3:INDEX($V$3:$V$271,MAX($U$3:$U$271),1) -> Friday Harbor, San Juan Island
B50: *Premierplastics.com | S50: Calgary | T50: 0 | U50: =IF(T50=1,COUNTIF($T$3:T50,1),"") ->  | V50: =IFERROR(INDEX($S$3:$S$271,MATCH(ROWS($U$3:U50),$U$3:$U$271,0)),"") ->  | W50: =IFERROR(INDEX($S$3:$S$271,MATCH(ROWS($U$3:V50),$U$3:$U$271,0)),"") ->  | X50: =IFERROR(INDEX($S$3:$S$271,MATCH(ROWS($U$3:U50),$U$3:$U$271,0)),"") ->  | Z50: =$V$3:INDEX($V$3:$V$271,MAX($U$3:$U$271),1) -> Friday Harbor, San Juan Island
S51: Campbell River | T51: 0 | U51: =IF(T51=1,COUNTIF($T$3:T51,1),"") ->  | V51: =IFERROR(INDEX($S$3:$S$271,MATCH(ROWS($U$3:U51),$U$3:$U$271,0)),"") ->  | W51: =IFERROR(INDEX($S$3:$S$271,MATCH(ROWS($U$3:V51),$U$3:$U$271,0)),"") ->  | X51: =IFERROR(INDEX($S$3:$S$271,MATCH(ROWS($U$3:U51),$U$3:$U$271,0)),"") ->  | Z51: =$V$3:INDEX($V$3:$V$271,MAX($U$3:$U$271),1) -> Friday Harbor, San Juan Island

Sheet Rainfall Data (hidden)
A3: Place | B3: JAN | C3: FEB | D3: MAR | E3: APR | F3: MAY | G3: JUN | H3: JUL | I3: AUG | J3: SEPT | K3: OCT | L3: NOV | M3: DEC
A4: Aberdeen | B4: 13.6 | C4: 9.3 | D4: 9 | E4: 6.2 | F4: 3.8 | G4: 2.6 | H4: 1.2 | I4: 1.5 | J4: 2.5 | K4: 7.7 | L4: 14.3 | M4: 12.9
A5: Clearwater | B5: 16.5 | C5: 11.2 | D5: 12.2 | E5: 8.6 | F5: 5.6 | G5: 3.8 | H5: 2.2 | I5: 2.7 | J5: 4.3 | K5: 10.7 | L5: 16.8 | M5: 14.3
A6: Forks | B6: 18.3 | C6: 12.7 | D6: 13.5 | E6: 9.2 | F6: 5.8 | G6: 3.9 | H6: 2.5 | I6: 2.6 | J6: 4 | K6: 11.8 | L6: 18.6 | M6: 16.8
A7: Friday Harbor, San Juan Island | B7: 4.2 | C7: 2.1 | D7: 2 | E7: 1.6 | F7: 1.5 | G7: 1.1 | H7: 0.8 | I7: 0.9 | J7: 1.4 | K7: 2.7 | L7: 4 | M7: 2.8
A8: Grayland | B8: 11.1 | C8: 7.9 | D8: 8.1 | E8: 5.7 | F8: 3.6 | G8: 2.6 | H8: 1.4 | I8: 1.6 | J8: 2.6 | K8: 7.6 | L8: 12.1 | M8: 10.8
A9: Long Beach | B9: 11.8 | C9: 8.4 | D9: 8.6 | E9: 6.3 | F9: 3.8 | G9: 2.9 | H9: 1.4 | I9: 1.7 | J9: 2.6 | K9: 7.2 | L9: 12.3 | M9: 11.7
A10: Port Angeles | B10: 4 | C10: 2.3 | D10: 2.2 | E10: 1.3 | F10: 1.1 | G10: 0.9 | H10: 0.6 | I10: 0.7 | J10: 0.9 | K10: 2.7 | L10: 4.5 | M10: 4.1
A11: Anacortes | B11: 3.6 | C11: 2.3 | D11: 2.3 | E11: 1.9 | F11: 1.9 | G11: 1.5 | H11: 0.9 | I11: 1 | J11: 1.5 | K11: 2.8 | L11: 4.7 | M11: 3.4
A12: Bellingham | B12: 4.7 | C12: 3 | D12: 3.2 | E12: 2.7 | F12: 2.5 | G12: 1.9 | H12: 1.2 | I12: 1.2 | J12: 1.8 | K12: 3.7 | L12: 5.8 | M12: 4.2
A13: Bremerton | B13: 8.9 | C13: 6 | D13: 6 | E13: 3.6 | F13: 2.5 | G13: 1.7 | H13: 0.9 | I13: 1 | J13: 1.6 | K13: 4.9 | L13: 9.4 | M13: 10.1
A14: Everett | B14: 5.1 | C14: 3.1 | D14: 3.7 | E14: 3 | F14: 2.7 | G14: 2.3 | H14: 1.2 | I14: 1.2 | J14: 2 | K14: 3.6 | L14: 5.6 | M14: 5.2
A15: Longview | B15: 6.6 | C15: 4.9 | D15: 4.7 | E15: 3.8 | F15: 3.2 | G15: 2.3 | H15: 0.8 | I15: 1.2 | J15: 2.1 | K15: 4 | L15: 7.7 | M15: 6.8
A16: Olga, Orcas Island | B16: 3.9 | C16: 2.4 | D16: 2.3 | E16: 1.9 | F16: 1.8 | G16: 1.3 | H16: 0.8 | I16: 1.1 | J16: 1.3 | K16: 3 | L16: 4.8 | M16: 3.5
A17: Olympia | B17: 7.8 | C17: 5.3 | D17: 5.3 | E17: 3.5 | F17: 2.3 | G17: 1.8 | H17: 0.6 | I17: 0.9 | J17: 1.7 | K17: 4.6 | L17: 8.6 | M17: 7.5
A18: Port Townsend | B18: 2.3 | C18: 1.5 | D18: 1.7 | E18: 1.5 | F18: 1.7 | G18: 1.3 | H18: 0.8 | I18: 0.7 | J18: 1 | K18: 1.6 | L18: 2.7 | M18: 2.5
A19: Seattle | B19: 5.5 | C19: 3.5 | D19: 3.9 | E19: 2.8 | F19: 2 | G19: 1.6 | H19: 0.9 | I19: 0.9 | J19: 1.3 | K19: 3.4 | L19: 6 | M19: 6.1
A20: Tacoma | B20: 5.9 | C20: 3.9 | D20: 4.1 | E20: 3 | F20: 2.1 | G20: 1.6 | H20: 0.7 | I20: 0.8 | J20: 1.3 | K20: 3.7 | L20: 6.7 | M20: 5.5
A21: Vancouver | B21: 5.9 | C21: 4.4 | D21: 4.2 | E21: 3.2 | F21: 2.7 | G21: 1.9 | H21: 0.7 | I21: 0.7 | J21: 1.6 | K21: 3.4 | L21: 6.5 | M21: 6.4
A22: Baker Lake Dam | B22: 14.7 | C22: 9.3 | D22: 9.3 | E22: 6.7 | F22: 5.1 | G22: 3.7 | H22: 2.3 | I22: 2.1 | J22: 4.2 | K22: 10.1 | L22: 16.9 | M22: 13.6
A23: Baring | B23: 16 | C23: 10.3 | D23: 10.4 | E23: 7.8 | F23: 5.6 | G23: 4.2 | H23: 2.1 | I23: 2 | J23: 4.6 | K23: 11 | L23: 18.9 | M23: 14
A24: Darrington | B24: 11.6 | C24: 8.5 | D24: 7.3 | E24: 5.4 | F24: 4 | G24: 3.2 | H24: 1.6 | I24: 1.7 | J24: 3 | K24: 7.7 | L24: 15.1 | M24: 12.1
A25: Mt Adams Ranger Station | B25: 7.4 | C25: 5.1 | D25: 5.5 | E25: 2.4 | F25: 1.7 | G25: 1.3 | H25: 0.5 | I25: 0.7 | J25: 1.1 | K25: 3.9 | L25: 7.8 | M25: 8.6
A26: Mt Rainier Paradise Ranger Station | B26: 18.2 | C26: 12.7 | D26: 12.6 | E26: 8.3 | F26: 5.9 | G26: 4.1 | H26: 2 | I26: 2 | J26: 4.7 | K26: 10.4 | L26: 20.3 | M26: 17.2
A27: Mud Mountain Lake Dam | B27: 7.2 | C27: 5 | D27: 5.8 | E27: 5 | F27: 4.8 | G27: 3.9 | H27: 1.9 | I27: 1.7 | J27: 2.8 | K27: 5 | L27: 8.7 | M27: 5.8
A28: Ross Dam | B28: 9.3 | C28: 5.9 | D28: 5.2 | E28: 3.1 | F28: 2.1 | G28: 1.7 | H28: 1.2 | I28: 1.3 | J28: 2.1 | K28: 6.1 | L28: 11.2 | M28: 8.5
A29: Stampede Pass | B29: 12.1 | C29: 7.6 | D29: 7.6 | E29: 5.3 | F29: 4.3 | G29: 3.4 | H29: 1.5 | I29: 1.5 | J29: 4.1 | K29: 7.8 | L29: 14.7 | M29: 11.3
A30: Boundary Dam | B30: 3 | C30: 1.9 | D30: 2.2 | E30: 2.2 | F30: 2.7 | G30: 3.1 | H30: 1.6 | I30: 1.2 | J30: 1.4 | K30: 2.1 | L30: 3.2 | M30: 3.5
A31: Chelan | B31: 1.6 | C31: 1.3 | D31: 0.9 | E31: 0.6 | F31: 1 | G31: 0.9 | H31: 0.4 | I31: 0.3 | J31: 0.4 | K31: 0.8 | L31: 1.8 | M31: 1.6
A32: Coulee Dam | B32: 1.1 | C32: 1 | D32: 0.9 | E32: 0.9 | F32: 1.2 | G32: 1.1 | H32: 0.6 | I32: 0.3 | J32: 0.4 | K32: 0.7 | L32: 1.3 | M32: 1.5
A33: Kennewick | B33: 1.1 | C33: 0.8 | D33: 0.7 | E33: 0.6 | F33: 0.6 | G33: 0.5 | H33: 0.2 | I33: 0.2 | J33: 0.3 | K33: 0.6 | L33: 1 | M33: 1.1
A34: Leavenworth | B34: 4.5 | C34: 2.6 | D34: 2.1 | E34: 1.1 | F34: 1.1 | G34: 1.1 | H34: 0.4 | I34: 0.5 | J34: 0.7 | K34: 2.1 | L34: 4.5 | M34: 4.5
A35: Pullman | B35: 2.6 | C35: 1.9 | D35: 2 | E35: 1.8 | F35: 1.8 | G35: 1.3 | H35: 0.7 | I35: 0.7 | J35: 0.8 | K35: 1.6 | L35: 2.9 | M35: 2.5
A36: Spokane | B36: 1.8 | C36: 1.3 | D36: 1.6 | E36: 1.3 | F36: 1.6 | G36: 1.3 | H36: 0.6 | I36: 0.6 | J36: 0.7 | K36: 1.2 | L36: 2.3 | M36: 2.3
A37: Walla Walla | B37: 2.5 | C37: 1.8 | D37: 2.3 | E37: 1.9 | F37: 2.1 | G37: 1.3 | H37: 0.6 | I37: 0.6 | J37: 0.8 | K37: 1.7 | L37: 2.9 | M37: 2.5
A38: Wenatchee | B38: 1.5 | C38: 1.1 | D38: 0.7 | E38: 0.6 | F38: 0.6 | G38: 0.6 | H38: 0.3 | I38: 0.2 | J38: 0.3 | K38: 0.6 | L38: 1.4 | M38: 1.6
A39: Winthrop | B39: 2 | C39: 1.3 | D39: 1 | E39: 0.8 | F39: 1.1 | G39: 1.2 | H39: 0.8 | I39: 0.5 | J39: 0.4 | K39: 1.1 | L39: 2.1 | M39: 2.5
A40: Yakima | B40: 1.2 | C40: 0.8 | D40: 0.6 | E40: 0.6 | F40: 0.6 | G40: 0.6 | H40: 0.2 | I40: 0.3 | J40: 0.4 | K40: 0.5 | L40: 1.1 | M40: 1.5

Sheet Rainfall Data (2) (hidden)
A3: Place | B3: JAN | C3: FEB | D3: MAR | E3: APR | F3: MAY | G3: JUN | H3: JUL | I3: AUG | J3: SEPT | K3: OCT | L3: NOV | M3: DEC
A4: Abbotsford | B4: 212 | C4: 132 | D4: 149 | E4: 118 | F4: 100 | G4: 75 | H4: 43 | I4: 46 | J4: 75 | K4: 153 | L4: 248 | M4: 187
A5: Atlin | B5: 46 | C5: 25 | D5: 17 | E5: 9 | F5: 18 | G5: 30 | H5: 33 | I5: 34 | J5: 42 | K5: 37 | L5: 36 | M5: 36
A6: Barkerville | B6: 96 | C6: 61 | D6: 66 | E6: 58 | F6: 78 | G6: 102 | H6: 100 | I6: 81 | J6: 82 | K6: 92 | L6: 111 | M6: 95
A7: Bella Coola | B7: 157 | C7: 88 | D7: 76 | E7: 56 | F7: 48 | G7: 51 | H7: 42 | I7: 60 | J7: 90 | K7: 195 | L7: 205 | M7: 131
A8: Campbell River | B8: 217 | C8: 149 | D8: 140 | E8: 92 | F8: 68 | G8: 63 | H8: 39 | I8: 45 | J8: 55 | K8: 162 | L8: 232 | M8: 226
A9: Castlegar | B9: 76 | C9: 51 | D9: 63 | E9: 59 | F9: 70 | G9: 72 | H9: 48 | I9: 30 | J9: 42 | K9: 51 | L9: 97 | M9: 90
A10: Chilliwack | B10: 233 | C10: 126 | D10: 155 | E10: 116 | F10: 93 | G10: 92 | H10: 48 | I10: 57 | J10: 75 | K10: 178 | L10: 284 | M10: 210
A11: Cortes Island, Whaletown | B11: 184 | C11: 131 | D11: 107 | E11: 100 | F11: 73 | G11: 70 | H11: 49 | I11: 55 | J11: 61 | K11: 155 | L11: 224 | M11: 181
A12: Courtenay - Comox | B12: 172 | C12: 114 | D12: 106 | E12: 65 | F12: 46 | G12: 43 | H12: 27 | I12: 29 | J12: 42 | K12: 123 | L12: 201 | M12: 188
A13: Cranbrook | B13: 26 | C13: 19 | D13: 22 | E13: 25 | F13: 46 | G13: 62 | H13: 38 | I13: 28 | J13: 31 | K13: 20 | L13: 35 | M13: 33
A14: Duncan | B14: 277 | C14: 146 | D14: 154 | E14: 81 | F14: 56 | G14: 41 | H14: 23 | I14: 35 | J14: 41 | K14: 153 | L14: 247 | M14: 254
A15: Fort Nelson | B15: 21 | C15: 15 | D15: 19 | E15: 19 | F15: 49 | G15: 63 | H15: 78 | I15: 71 | J15: 40 | K15: 33 | L15: 26 | M15: 18
A16: Fort St John | B16: 25 | C16: 19 | D16: 24 | E16: 20 | F16: 38 | G16: 66 | H16: 75 | I16: 51 | J16: 45 | K16: 31 | L16: 29 | M16: 22
A17: Gabriola Island | B17: 147 | C17: 96 | D17: 92 | E17: 63 | F17: 48 | G17: 43 | H17: 24 | I17: 27 | J17: 34 | K17: 86 | L17: 157 | M17: 141
A18: Gibsons | B18: 183 | C18: 110 | D18: 125 | E18: 104 | F18: 91 | G18: 67 | H18: 41 | I18: 49 | J18: 60 | K18: 152 | L18: 213 | M18: 174
A19: Gold River | B19: 424 | C19: 286 | D19: 266 | E19: 187 | F19: 120 | G19: 91 | H19: 56 | I19: 71 | J19: 109 | K19: 359 | L19: 491 | M19: 391
A20: Golden | B20: 46 | C20: 24 | D20: 24 | E20: 24 | F20: 34 | G20: 50 | H20: 51 | I20: 45 | J20: 38 | K20: 35 | L20: 51 | M20: 44
A21: Kamloops | B21: 21 | C21: 12 | D21: 13 | E21: 14 | F21: 27 | G21: 37 | H21: 31 | I21: 24 | J21: 29 | K21: 19 | L21: 23 | M21: 25
A22: Kelowna | B22: 30 | C22: 20 | D22: 21 | E22: 24 | F22: 31 | G22: 40 | H22: 33 | I22: 26 | J22: 27 | K22: 24 | L22: 35 | M22: 32
A23: Lillooet | B23: 38 | C23: 20 | D23: 17 | E23: 19 | F23: 26 | G23: 24 | H23: 36 | I23: 26 | J23: 24 | K23: 34 | L23: 44 | M23: 42
A24: Mayne Island, Village Bay | B24: 130 | C24: 88 | D24: 75 | E24: 55 | F24: 44 | G24: 37 | H24: 21 | I24: 24 | J24: 28 | K24: 80 | L24: 135 | M24: 125
A25: Nanaimo | B25: 188 | C25: 126 | D25: 113 | E25: 67 | F25: 54 | G25: 43 | H25: 25 | I25: 28 | J25: 36 | K25: 102 | L25: 197 | M25: 184
A26: North Vancouver, Capilano | B26: 330 | C26: 279 | D26: 218 | E26: 207 | F26: 132 | G26: 124 | H26: 61 | I26: 72 | J26: 98 | K26: 248 | L26: 437 | M26: 316
A27: Penticton | B27: 27 | C27: 20 | D27: 24 | E27: 26 | F27: 39 | G27: 46 | H27: 29 | I27: 28 | J27: 25 | K27: 26 | L27: 28 | M27: 29
A28: Port Alberni | B28: 291 | C28: 255 | D28: 190 | E28: 127 | F28: 79 | G28: 55 | H28: 26 | I28: 38 | J28: 49 | K28: 204 | L28: 317 | M28: 276
A29: Port Hardy | B29: 247 | C29: 160 | D29: 160 | E29: 125 | F29: 79 | G29: 81 | H29: 54 | I29: 73 | J29: 110 | K29: 257 | L29: 312 | M29: 251
A30: Port Renfrew | B30: 556 | C30: 377 | D30: 362 | E30: 259 | F30: 155 | G30: 108 | H30: 51 | I30: 82 | J30: 124 | K30: 371 | L30: 580 | M30: 481
A31: Powell River | B31: 159 | C31: 109 | D31: 111 | E31: 83 | F31: 77 | G31: 68 | H31: 37 | I31: 45 | J31: 55 | K31: 126 | L31: 178 | M31: 158
A32: Prince George | B32: 54 | C32: 29 | D32: 27 | E32: 33 | F32: 42 | G32: 61 | H32: 59 | I32: 46 | J32: 54 | K32: 60 | L32: 48 | M32: 44
A33: Prince Rupert | B33: 328 | C33: 221 | D33: 235 | E33: 211 | F33: 160 | G33: 127 | H33: 127 | I33: 177 | J33: 297 | K33: 432 | L33: 375 | M33: 371
A34: Revelstoke | B34: 108 | C34: 80 | D34: 62 | E34: 67 | F34: 58 | G34: 75 | H34: 72 | I34: 67 | J34: 55 | K34: 84 | L34: 118 | M34: 104
A35: Saltspring Island | B35: 162 | C35: 99 | D35: 89 | E35: 57 | F35: 43 | G35: 37 | H35: 23 | I35: 28 | J35: 33 | K35: 94 | L35: 168 | M35: 154
A36: Sandspit, Haida Gwaii | B36: 191 | C36: 131 | D36: 117 | E36: 98 | F36: 66 | G36: 52 | H36: 48 | I36: 62 | J36: 83 | K36: 170 | L36: 194 | M36: 196
A37: Sidney | B37: 143 | C37: 89 | D37: 78 | E37: 48 | F37: 38 | G37: 31 | H37: 18 | I37: 24 | J37: 31 | K37: 88 | L37: 153 | M37: 142
A38: Smithers | B38: 43 | C38: 23 | D38: 21 | E38: 24 | F38: 38 | G38: 55 | H38: 46 | I38: 44 | J38: 54 | K38: 65 | L38: 55 | M38: 42
A39: Sparwood | B39: 54 | C39: 41 | D39: 44 | E39: 41 | F39: 60 | G39: 69 | H39: 47 | I39: 35 | J39: 47 | K39: 49 | L39: 72 | M39: 53
A40: Tofino | B40: 487 | C40: 336 | D40: 330 | E40: 270 | F40: 153 | G40: 130 | H40: 71 | I40: 88 | J40: 133 | K40: 342 | L40: 492 | M40: 440
A41: Vancouver | B41: 223 | C41: 111 | D41: 125 | E41: 102 | F41: 75 | G41: 68 | H41: 43 | I41: 48 | J41: 59 | K41: 157 | L41: 238 | M41: 207
A42: Vernon | B42: 33 | C42: 25 | D42: 29 | E42: 32 | F42: 42 | G42: 49 | H42: 42 | I42: 28 | J42: 37 | K42: 27 | L42: 44 | M42: 38
A43: Victoria | B43: 103 | C43: 74 | D43: 50 | E43: 39 | F43: 36 | G43: 27 | H43: 17 | I43: 22 | J43: 25 | K43: 74 | L43: 138 | M43: 102
A44: Whistler | B44: 176 | C44: 105 | D44: 98 | E44: 76 | F44: 67 | G44: 59 | H44: 45 | I44: 47 | J44: 55 | K44: 155 | L44: 192 | M44: 154
A45: Williams Lake | B45: 33 | C45: 19 | D45: 18 | E45: 22 | F45: 39 | G45: 59 | H45: 53 | I45: 46 | J45: 42 | K45: 41 | L45: 42 | M45: 38
A46: Brooks | B46: 13 | C46: 9 | D46: 19 | E46: 22 | F46: 35 | G46: 74 | H46: 26 | I46: 38 | J46: 29 | K46: 11 | L46: 13 | M46: 12
A47: Cardston | B47: 21 | C47: 19 | D47: 37 | E47: 41 | F47: 81 | G47: 91 | H47: 45 | I47: 44 | J47: 53 | K47: 32 | L47: 30 | M47: 21
A48: Lethbridge | B48: 13 | C48: 12 | D48: 23 | E48: 28 | F48: 50 | G48: 82 | H48: 43 | I48: 37 | J48: 41 | K48: 20 | L48: 18 | M48: 13
A49: Medicine Hat | B49: 13 | C49: 8 | D49: 19 | E49: 20 | F49: 44 | G49: 65 | H49: 36 | I49: 34 | J49: 37 | K49: 19 | L49: 15 | M49: 12
A50: Taber | B50: 17 | C50: 14 | D50: 24 | E50: 32 | F50: 48 | G50: 91 | H50: 29 | I50: 39 | J50: 37 | K50: 19 | L50: 17 | M50: 15
A51: Waterton Village | B51: 52 | C51: 32 | D51: 38 | E51: 52 | F51: 70 | G51: 115 | H51: 19 | I51: 41 | J51: 58 | K51: 41 | L51: 47 | M51: 30
A52: Banff | B52: 20 | C52: 17 | D52: 21 | E52: 34 | F52: 62 | G52: 68 | H52: 68 | I52: 62 | J52: 39 | K52: 32 | L52: 26 | M52: 21
A53: Calgary | B53: 9 | C53: 9 | D53: 18 | E53: 25 | F53: 57 | G53: 94 | H53: 66 | I53: 57 | J53: 45 | K53: 15 | L53: 13 | M53: 10
A54: Camrose | B54: 23 | C54: 14 | D54: 23 | E54: 29 | F54: 41 | G54: 74 | H54: 86 | I54: 52 | J54: 40 | K54: 24 | L54: 19 | M54: 15
A55: Edmonton | B55: 22 | C55: 12 | D55: 16 | E55: 29 | F55: 46 | G55: 77 | H55: 94 | I55: 62 | J55: 43 | K55: 22 | L55: 18 | M55: 15
A56: Edson | B56: 27 | C56: 12 | D56: 18 | E56: 23 | F56: 54 | G56: 94 | H56: 108 | I56: 75 | J56: 64 | K56: 25 | L56: 20 | M56: 18
A57: Jasper | B57: 23 | C57: 14 | D57: 17 | E57: 20 | F57: 31 | G57: 51 | H57: 64 | I57: 64 | J57: 34 | K57: 30 | L57: 24 | M57: 20
A58: Lloydminster | B58: 16 | C58: 10 | D58: 14 | E58: 26 | F58: 45 | G58: 71 | H58: 75 | I58: 60 | J58: 42 | K58: 18 | L58: 18 | M58: 14
A59: Red Deer | B59: 22 | C59: 13 | D59: 21 | E59: 21 | F59: 56 | G59: 89 | H59: 97 | I59: 63 | J59: 51 | K59: 21 | L59: 18 | M59: 14
A60: Rocky Mountain House | B60: 19 | C60: 15 | D60: 18 | E60: 24 | F60: 65 | G60: 87 | H60: 115 | I60: 67 | J60: 74 | K60: 26 | L60: 17 | M60: 16
A61: Cold Lake | B61: 16 | C61: 11 | D61: 17 | E61: 31 | F61: 41 | G61: 73 | H61: 79 | I61: 57 | J61: 39 | K61: 20 | L61: 19 | M61: 18
A62: Fort Chipewyan | B62: 15 | C62: 14 | D62: 16 | E62: 16 | F62: 27 | G62: 44 | H62: 67 | I62: 50 | J62: 44 | K62: 29 | L62: 24 | M62: 18
A63: Fort McMurray | B63: 18 | C63: 13 | D63: 17 | E63: 21 | F63: 36 | G63: 73 | H63: 81 | I63: 57 | J63: 40 | K63: 26 | L63: 20 | M63: 16
A64: Grande Prairie | B64: 30 | C64: 16 | D64: 17 | E64: 20 | F64: 41 | G64: 76 | H64: 76 | I64: 56 | J64: 43 | K64: 26 | L64: 25 | M64: 19
A65: High Level | B65: 20 | C65: 18 | D65: 18 | E65: 15 | F65: 36 | G65: 51 | H65: 66 | I65: 43 | J65: 32 | K65: 31 | L65: 25 | M65: 19
A66: Slave Lake | B66: 16 | C66: 10 | D66: 16 | E66: 22 | F66: 43 | G66: 78 | H66: 71 | I66: 60 | J66: 42 | K66: 25 | L66: 16 | M66: 12
A67: Emerson | B67: 27 | C67: 21 | D67: 25 | E67: 29 | F67: 58 | G67: 90 | H67: 94 | I67: 74 | J67: 57 | K67: 47 | L67: 37 | M67: 33
A68: Gimli | B68: 20 | C68: 14 | D68: 31 | E68: 28 | F68: 42 | G68: 104 | H68: 78 | I68: 57 | J68: 58 | K68: 47 | L68: 28 | M68: 20
A69: Hodgson | B69: 36 | C69: 23 | D69: 35 | E69: 29 | F69: 62 | G69: 87 | H69: 69 | I69: 67 | J69: 59 | K69: 47 | L69: 37 | M69: 43
A70: Morden | B70: 19 | C70: 19 | D70: 22 | E70: 35 | F70: 58 | G70: 93 | H70: 79 | I70: 71 | J70: 45 | K70: 50 | L70: 30 | M70: 20
A71: Portage La Prairie | B71: 23 | C71: 15 | D71: 26 | E71: 25 | F71: 43 | G71: 82 | H71: 80 | I71: 74 | J71: 57 | K71: 46 | L71: 29 | M71: 26
A72: Selkirk | B72: 14 | C72: 9 | D72: 23 | E72: 22 | F72: 60 | G72: 96 | H72: 87 | I72: 81 | J72: 55 | K72: 39 | L72: 20 | M72: 14
A73: Steinbach | B73: 22 | C73: 14 | D73: 22 | E73: 31 | F73: 69 | G73: 100 | H73: 93 | I73: 74 | J73: 57 | K73: 46 | L73: 28 | M73: 24
A74: Winnipeg | B74: 20 | C74: 14 | D74: 24 | E74: 30 | F74: 57 | G74: 90 | H74: 80 | I74: 77 | J74: 46 | K74: 38 | L74: 25 | M74: 21
A75: Brandon | B75: 18 | C75: 13 | D75: 25 | E75: 26 | F75: 59 | G75: 81 | H75: 73 | I75: 66 | J75: 44 | K75: 30 | L75: 19 | M75: 21
A76: Dauphin | B76: 14 | C76: 11 | D76: 24 | E76: 30 | F76: 55 | G76: 82 | H76: 73 | I76: 61 | J76: 58 | K76: 35 | L76: 21 | M76: 19
A77: McCreary | B77: 21 | C77: 18 | D77: 34 | E77: 30 | F77: 63 | G77: 88 | H77: 74 | I77: 62 | J77: 58 | K77: 43 | L77: 26 | M77: 23
A78: Swan River | B78: 22 | C78: 16 | D78: 24 | E78: 35 | F78: 54 | G78: 85 | H78: 96 | I78: 77 | J78: 53 | K78: 34 | L78: 25 | M78: 24
A79: Turtle Mountain Park | B79: 19 | C79: 15 | D79: 25 | E79: 26 | F79: 61 | G79: 86 | H79: 82 | I79: 67 | J79: 41 | K79: 37 | L79: 24 | M79: 21
A80: Churchill | B80: 19 | C80: 17 | D80: 18 | E80: 24 | F80: 30 | G80: 44 | H80: 60 | I80: 69 | J80: 70 | K80: 48 | L80: 35 | M80: 18
A81: Cross Lake | B81: 16 | C81: 18 | D81: 16 | E81: 19 | F81: 42 | G81: 68 | H81: 77 | I81: 70 | J81: 60 | K81: 34 | L81: 25 | M81: 23
A82: Flin Flon | B82: 18 | C82: 15 | D82: 19 | E82: 28 | F82: 41 | G82: 67 | H82: 83 | I82: 67 | J82: 64 | K82: 38 | L82: 26 | M82: 22
A83: Gillam | B83: 20 | C83: 19 | D83: 23 | E83: 22 | F83: 43 | G83: 56 | H83: 79 | I83: 76 | J83: 57 | K83: 42 | L83: 38 | M83: 23
A84: Grand Rapids | B84: 18 | C84: 13 | D84: 21 | E84: 26 | F84: 52 | G84: 77 | H84: 71 | I84: 66 | J84: 59 | K84: 38 | L84: 26 | M84: 22
A85: Lynn Lake | B85: 20 | C85: 16 | D85: 20 | E85: 24 | F85: 37 | G85: 62 | H85: 85 | I85: 69 | J85: 61 | K85: 38 | L85: 27 | M85: 19
A86: Norway House | B86: 21 | C86: 23 | D86: 24 | E86: 25 | F86: 50 | G86: 70 | H86: 80 | I86: 75 | J86: 61 | K86: 47 | L86: 29 | M86: 27
A87: The Pas | B87: 17 | C87: 13 | D87: 18 | E87: 24 | F87: 40 | G87: 66 | H87: 69 | I87: 67 | J87: 57 | K87: 38 | L87: 21 | M87: 20
A88: Thompson | B88: 19 | C88: 16 | D88: 23 | E88: 29 | F88: 47 | G88: 68 | H88: 81 | I88: 71 | J88: 62 | K88: 37 | L88: 33 | M88: 23
A89: Fredericton | B89: 95 | C89: 73 | D89: 93 | E89: 86 | F89: 96 | G89: 82 | H89: 88 | I89: 86 | J89: 88 | K89: 89 | L89: 106 | M89: 95
A90: Mactaquac Provincial Park | B90: 101 | C90: 64 | D90: 90 | E90: 86 | F90: 100 | G90: 87 | H90: 98 | I90: 85 | J90: 92 | K90: 97 | L90: 101 | M90: 99
A91: Saint John | B91: 124 | C91: 91 | D91: 108 | E91: 105 | F91: 110 | G91: 101 | H91: 88 | I91: 82 | J91: 106 | K91: 116 | L91: 134 | M91: 130
A92: Saint Leonard | B92: 91 | C92: 68 | D92: 78 | E92: 77 | F92: 87 | G92: 98 | H92: 119 | I92: 101 | J92: 95 | K92: 100 | L92: 98 | M92: 91
A93: Sussex | B93: 109 | C93: 85 | D93: 115 | E93: 90 | F93: 103 | G93: 88 | H93: 84 | I93: 74 | J93: 100 | K93: 106 | L93: 110 | M93: 106
A94: Wiggins Point | B94: 99 | C94: 71 | D94: 84 | E94: 89 | F94: 108 | G94: 89 | H94: 80 | I94: 89 | J94: 80 | K94: 94 | L94: 112 | M94: 92
A95: Woodstock | B95: 104 | C95: 72 | D95: 91 | E95: 80 | F95: 94 | G95: 91 | H95: 100 | I95: 101 | J95: 96 | K95: 95 | L95: 103 | M95: 103
A96: Buctouche | B96: 104 | C96: 88 | D96: 93 | E96: 86 | F96: 101 | G96: 95 | H96: 99 | I96: 85 | J96: 86 | K96: 95 | L96: 103 | M96: 101
A97: Doaktown | B97: 106 | C97: 77 | D97: 90 | E97: 83 | F97: 113 | G97: 95 | H97: 106 | I97: 94 | J97: 100 | K97: 101 | L97: 112 | M97: 97
A98: Fundy National Park | B98: 145 | C98: 108 | D98: 146 | E98: 121 | F98: 127 | G98: 110 | H98: 99 | I98: 94 | J98: 123 | K98: 133 | L98: 159 | M98: 147
A99: Kouchibouguac National Park | B99: 138 | C99: 99 | D99: 123 | E99: 107 | F99: 112 | G99: 91 | H99: 110 | I99: 87 | J99: 84 | K99: 100 | L99: 121 | M99: 125
A100: Moncton | B100: 98 | C100: 84 | D100: 106 | E100: 92 | F100: 102 | G100: 88 | H100: 85 | I100: 77 | J100: 94 | K100: 106 | L100: 94 | M100: 100
A101: Sackville | B101: 103 | C101: 75 | D101: 93 | E101: 89 | F101: 108 | G101: 94 | H101: 87 | I101: 82 | J101: 107 | K101: 106 | L101: 108 | M101: 95
A102: Bathurst | B102: 98 | C102: 68 | D102: 73 | E102: 91 | F102: 77 | G102: 92 | H102: 96 | I102: 118 | J102: 72 | K102: 84 | L102: 107 | M102: 95
A103: Dalhousie | B103: 84 | C103: 67 | D103: 77 | E103: 72 | F103: 85 | G103: 85 | H103: 102 | I103: 90 | J103: 79 | K103: 84 | L103: 92 | M103: 80
A104: Kedgwick | B104: 72 | C104: 59 | D104: 50 | E104: 61 | F104: 84 | G104: 106 | H104: 122 | I104: 103 | J104: 86 | K104: 95 | L104: 80 | M104: 73
A105: Miramichi | B105: 87 | C105: 71 | D105: 91 | E105: 85 | F105: 99 | G105: 86 | H105: 100 | I105: 93 | J105: 84 | K105: 90 | L105: 101 | M105: 85
A106: Mount Carleton Provincial Park | B106: 99 | C106: 68 | D106: 77 | E106: 76 | F106: 93 | G106: 105 | H106: 119 | I106: 104 | J106: 97 | K106: 95 | L106: 97 | M106: 91
A107: Upsalquitch Lake | B107: 86 | C107: 49 | D107: 85 | E107: 88 | F107: 101 | G107: 104 | H107: 131 | I107: 106 | J107: 101 | K107: 107 | L107: 74 | M107: 69
A108: Come By Chance | B108: 130 | C108: 117 | D108: 109 | E108: 96 | F108: 95 | G108: 132 | H108: 93 | I108: 89 | J108: 118 | K108: 131 | L108: 120 | M108: 110
A109: Harbour Grace | B109: 124 | C109: 124 | D109: 115 | E109: 94 | F109: 85 | G109: 121 | H109: 89 | I109: 89 | J109: 135 | K109: 138 | L109: 112 | M109: 103
A110: Long Harbour | B110: 130 | C110: 118 | D110: 116 | E110: 112 | F110: 92 | G110: 121 | H110: 102 | I110: 97 | J110: 126 | K110: 135 | L110: 127 | M110: 117
A111: St John's | B111: 149 | C111: 130 | D111: 142 | E111: 123 | F111: 103 | G111: 98 | H111: 92 | I111: 100 | J111: 130 | K111: 156 | L111: 148 | M111: 165
A112: St Shotts | B112: 138 | C112: 114 | D112: 129 | E112: 115 | F112: 111 | G112: 139 | H112: 137 | I112: 113 | J112: 127 | K112: 143 | L112: 146 | M112: 140
A113: Bonavista | B113: 101 | C113: 104 | D113: 103 | E113: 83 | F113: 76 | G113: 90 | H113: 82 | I113: 79 | J113: 108 | K113: 115 | L113: 105 | M113: 107
A114: St Lawrence | B114: 145 | C114: 141 | D114: 126 | E114: 122 | F114: 125 | G114: 146 | H114: 115 | I114: 94 | J114: 172 | K114: 157 | L114: 158 | M114: 142
A115: Terra Nova National Park | B115: 111 | C115: 118 | D115: 103 | E115: 91 | F115: 82 | G115: 103 | H115: 98 | I115: 88 | J115: 119 | K115: 105 | L115: 97 | M115: 116
A116: Baie Verte | B116: 104 | C116: 87 | D116: 75 | E116: 74 | F116: 79 | G116: 108 | H116: 86 | I116: 115 | J116: 92 | K116: 112 | L116: 88 | M116: 96
A117: Burgeo | B117: 156 | C117: 124 | D117: 110 | E117: 138 | F117: 127 | G117: 155 | H117: 138 | I117: 129 | J117: 144 | K117: 155 | L117: 164 | M117: 146
A118: Gander | B118: 112 | C118: 105 | D118: 113 | E118: 95 | F118: 90 | G118: 88 | H118: 95 | I118: 104 | J118: 115 | K118: 114 | L118: 113 | M118: 127
A119: Grand Falls | B119: 94 | C119: 94 | D119: 91 | E119: 84 | F119: 78 | G119: 89 | H119: 89 | I119: 107 | J119: 96 | K119: 94 | L119: 94 | M119: 90
A120: Harbour Breton | B120: 112 | C120: 120 | D120: 102 | E120: 125 | F120: 117 | G120: 138 | H120: 119 | I120: 93 | J120: 140 | K120: 147 | L120: 150 | M120: 121
A121: Musgrave Harbour | B121: 88 | C121: 82 | D121: 76 | E121: 74 | F121: 73 | G121: 75 | H121: 82 | I121: 93 | J121: 110 | K121: 100 | L121: 93 | M121: 98
A122: Springdale | B122: 79 | C122: 65 | D122: 57 | E122: 61 | F122: 73 | G122: 100 | H122: 92 | I122: 106 | J122: 90 | K122: 88 | L122: 70 | M122: 71
A123: Channel-Port-Aux-Basques | B123: 152 | C123: 125 | D123: 108 | E123: 139 | F123: 119 | G123: 127 | H123: 113 | I123: 119 | J123: 125 | K123: 145 | L123: 151 | M123: 172
A124: Corner Brook | B124: 145 | C124: 106 | D124: 93 | E124: 80 | F124: 86 | G124: 87 | H124: 92 | I124: 107 | J124: 106 | K124: 112 | L124: 122 | M124: 149
A125: Deer Lake | B125: 114 | C125: 84 | D125: 73 | E125: 70 | F125: 77 | G125: 81 | H125: 95 | I125: 110 | J125: 100 | K125: 89 | L125: 91 | M125: 111
A126: Gros Morne National Park | B126: 237 | C126: 138 | D126: 93 | E126: 81 | F126: 85 | G126: 123 | H126: 96 | I126: 133 | J126: 127 | K126: 159 | L126: 156 | M126: 200
A127: Port Saunders | B127: 127 | C127: 93 | D127: 79 | E127: 57 | F127: 79 | G127: 105 | H127: 107 | I127: 99 | J127: 115 | K127: 97 | L127: 82 | M127: 107
A128: Rocky Harbour | B128: 136 | C128: 106 | D128: 87 | E128: 69 | F128: 74 | G128: 118 | H128: 80 | I128: 117 | J128: 105 | K128: 123 | L128: 120 | M128: 137
A129: St Anthony | B129: 114 | C129: 95 | D129: 98 | E129: 82 | F129: 83 | G129: 123 | H129: 106 | I129: 108 | J129: 120 | K129: 125 | L129: 116 | M129: 138
A130: Stephenville | B130: 125 | C130: 105 | D130: 86 | E130: 78 | F130: 97 | G130: 104 | H130: 118 | I130: 130 | J130: 128 | K130: 127 | L130: 118 | M130: 123
A131: Cartwright | B131: 86 | C131: 91 | D131: 92 | E131: 75 | F131: 68 | G131: 99 | H131: 101 | I131: 94 | J131: 89 | K131: 102 | L131: 85 | M131: 92
A132: Churchill Falls | B132: 53 | C132: 44 | D132: 55 | E132: 64 | F132: 61 | G132: 80 | H132: 112 | I132: 93 | J132: 111 | K132: 82 | L132: 78 | M132: 54
A133: Happy Valley - Goose Bay | B133: 65 | C133: 57 | D133: 65 | E133: 64 | F133: 69 | G133: 91 | H133: 121 | I133: 99 | J133: 91 | K133: 81 | L133: 72 | M133: 64
A134: Makkovik | B134: 73 | C134: 75 | D134: 73 | E134: 62 | F134: 52 | G134: 94 | H134: 101 | I134: 98 | J134: 92 | K134: 92 | L134: 84 | M134: 84
A135: Mary's Harbour | B135: 69 | C135: 81 | D135: 67 | E135: 51 | F135: 73 | G135: 95 | H135: 86 | I135: 89 | J135: 68 | K135: 93 | L135: 84 | M135: 87
A136: Nain | B136: 84 | C136: 71 | D136: 74 | E136: 71 | F136: 57 | G136: 83 | H136: 99 | I136: 71 | J136: 82 | K136: 74 | L136: 78 | M136: 82
A137: Wabush Lake | B137: 49 | C137: 40 | D137: 54 | E137: 49 | F137: 53 | G137: 83 | H137: 114 | I137: 103 | J137: 97 | K137: 76 | L137: 71 | M137: 50
A138: Baddeck | B138: 155 | C138: 126 | D138: 129 | E138: 126 | F138: 104 | G138: 105 | H138: 97 | I138: 107 | J138: 128 | K138: 137 | L138: 155 | M138: 166
A139: Cheticamp | B139: 143 | C139: 108 | D139: 103 | E139: 88 | F139: 85 | G139: 96 | H139: 90 | I139: 114 | J139: 124 | K139: 130 | L139: 141 | M139: 153
A140: Ingonish Beach | B140: 186 | C140: 140 | D140: 154 | E140: 169 | F140: 109 | G140: 91 | H140: 93 | I140: 114 | J140: 144 | K140: 176 | L140: 190 | M140: 188
A141: Louisbourg | B141: 147 | C141: 138 | D141: 144 | E141: 148 | F141: 128 | G141: 113 | H141: 108 | I141: 108 | J141: 133 | K141: 158 | L141: 169 | M141: 153
A142: Port Hawkesbury | B142: 121 | C142: 116 | D142: 113 | E142: 106 | F142: 98 | G142: 97 | H142: 96 | I142: 82 | J142: 117 | K142: 157 | L142: 147 | M142: 134
A143: Sydney | B143: 153 | C143: 128 | D143: 130 | E143: 133 | F143: 103 | G143: 97 | H143: 88 | I143: 100 | J143: 119 | K143: 143 | L143: 156 | M143: 167
A144: Pictou | B144: 110 | C144: 95 | D144: 100 | E144: 94 | F144: 84 | G144: 90 | H144: 77 | I144: 81 | J144: 118 | K144: 129 | L144: 135 | M144: 121
A145: Pugwash | B145: 88 | C145: 65 | D145: 77 | E145: 82 | F145: 95 | G145: 82 | H145: 73 | I145: 78 | J145: 98 | K145: 104 | L145: 100 | M145: 96
A146: Sable Island | B146: 145 | C146: 113 | D146: 130 | E146: 115 | F146: 101 | G146: 116 | H146: 101 | I146: 122 | J146: 130 | K146: 145 | L146: 151 | M146: 145
A147: Stillwater - Sherbrooke | B147: 131 | C147: 115 | D147: 130 | E147: 112 | F147: 119 | G147: 113 | H147: 96 | I147: 110 | J147: 138 | K147: 139 | L147: 165 | M147: 156
A148: Bridgewater | B148: 144 | C148: 120 | D148: 156 | E148: 127 | F148: 128 | G148: 104 | H148: 97 | I148: 100 | J148: 111 | K148: 137 | L148: 165 | M148: 148
A149: Halifax | B149: 140 | C149: 110 | D149: 132 | E149: 118 | F149: 119 | G149: 112 | H149: 110 | I149: 96 | J149: 109 | K149: 124 | L149: 151 | M149: 145
A150: Liverpool - Milton | B150: 159 | C150: 137 | D150: 165 | E150: 146 | F150: 136 | G150: 109 | H150: 98 | I150: 89 | J150: 122 | K150: 128 | L150: 180 | M150: 176
A151: Yarmouth | B151: 127 | C151: 102 | D151: 116 | E151: 101 | F151: 101 | G151: 95 | H151: 88 | I151: 84 | J151: 95 | K151: 112 | L151: 139 | M151: 132
A152: Amherst - Nappan | B152: 106 | C152: 83 | D152: 105 | E152: 92 | F152: 101 | G152: 83 | H152: 89 | I152: 74 | J152: 102 | K152: 103 | L152: 111 | M152: 107
A153: Annapolis Royal | B153: 114 | C153: 85 | D153: 94 | E153: 95 | F153: 86 | G153: 74 | H153: 69 | I153: 69 | J153: 110 | K153: 120 | L153: 125 | M153: 113
A154: Kejimkujik National Park | B154: 136 | C154: 102 | D154: 125 | E154: 124 | F154: 99 | G154: 102 | H154: 98 | I154: 90 | J154: 83 | K154: 97 | L154: 152 | M154: 140
A155: Kentville | B155: 116 | C155: 101 | D155: 110 | E155: 93 | F155: 102 | G155: 82 | H155: 84 | I155: 77 | J155: 84 | K155: 89 | L155: 122 | M155: 122
A156: Parrsboro | B156: 115 | C156: 89 | D156: 115 | E156: 104 | F156: 105 | G156: 102 | H156: 90 | I156: 86 | J156: 113 | K156: 109 | L156: 120 | M156: 122
A157: Truro | B157: 115 | C157: 90 | D157: 104 | E157: 85 | F157: 94 | G157: 93 | H157: 85 | I157: 80 | J157: 103 | K157: 105 | L157: 115 | M157: 114
A158: Belleville | B158: 67 | C158: 58 | D158: 62 | E158: 76 | F158: 81 | G158: 74 | H158: 65 | I158: 75 | J158: 92 | K158: 85 | L158: 96 | M158: 79
A159: Cornwall | B159: 76 | C159: 60 | D159: 62 | E159: 81 | F159: 88 | G159: 97 | H159: 99 | I159: 89 | J159: 98 | K159: 93 | L159: 92 | M159: 76
A160: Kingston | B160: 65 | C160: 65 | D160: 69 | E160: 87 | F160: 77 | G160: 72 | H160: 64 | I160: 94 | J160: 90 | K160: 92 | L160: 100 | M160: 84
A161: Ottawa | B161: 63 | C161: 50 | D161: 57 | E161: 71 | F161: 87 | G161: 93 | H161: 84 | I161: 84 | J161: 93 | K161: 86 | L161: 83 | M161: 70
A162: Pembroke | B162: 48 | C162: 42 | D162: 56 | E162: 60 | F162: 76 | G162: 70 | H162: 75 | I162: 83 | J162: 84 | K162: 77 | L162: 69 | M162: 59
A163: Barrie | B163: 83 | C163: 62 | D163: 58 | E163: 62 | F163: 82 | G163: 85 | H163: 77 | I163: 90 | J163: 94 | K163: 78 | L163: 89 | M163: 74
A164: Brantford | B164: 55 | C164: 51 | D164: 59 | E164: 69 | F164: 81 | G164: 76 | H164: 95 | I164: 75 | J164: 87 | K164: 70 | L164: 84 | M164: 65
A165: French River, Chaudiere Dam | B165: 75 | C165: 61 | D165: 59 | E165: 67 | F165: 90 | G165: 74 | H165: 80 | I165: 79 | J165: 106 | K165: 100 | L165: 87 | M165: 80
A166: Hamilton | B166: 57 | C166: 57 | D166: 64 | E166: 73 | F166: 85 | G166: 73 | H166: 83 | I166: 90 | J166: 81 | K166: 72 | L166: 91 | M166: 72
A167: Huntsville | B167: 93 | C167: 72 | D167: 68 | E167: 61 | F167: 89 | G167: 78 | H167: 83 | I167: 81 | J167: 111 | K167: 105 | L167: 99 | M167: 94
A168: Midland | B168: 103 | C168: 64 | D168: 56 | E168: 70 | F168: 84 | G168: 81 | H168: 78 | I168: 78 | J168: 95 | K168: 94 | L168: 104 | M168: 95
A169: Niagara Falls | B169: 64 | C169: 64 | D169: 68 | E169: 75 | F169: 83 | G169: 85 | H169: 84 | I169: 78 | J169: 88 | K169: 84 | L169: 102 | M169: 87
A170: Oshawa | B170: 66 | C170: 57 | D170: 54 | E170: 73 | F170: 79 | G170: 74 | H170: 73 | I170: 77 | J170: 94 | K170: 70 | L170: 85 | M170: 71
A171: Peterborough | B171: 55 | C171: 61 | D171: 54 | E171: 70 | F171: 83 | G171: 73 | H171: 61 | I171: 96 | J171: 84 | K171: 77 | L171: 83 | M171: 74
A172: St Catharines | B172: 65 | C172: 55 | D172: 62 | E172: 77 | F172: 77 | G172: 86 | H172: 78 | I172: 70 | J172: 91 | K172: 67 | L172: 82 | M172: 71
A173: Toronto | B173: 62 | C173: 55 | D173: 54 | E173: 68 | F173: 82 | G173: 71 | H173: 64 | I173: 81 | J173: 85 | K173: 64 | L173: 84 | M173: 61
A174: Chatham-Kent | B174: 63 | C174: 54 | D174: 60 | E174: 80 | F174: 80 | G174: 78 | H174: 85 | I174: 79 | J174: 89 | K174: 71 | L174: 77 | M174: 67
A175: Guelph | B175: 52 | C175: 58 | D175: 67 | E175: 74 | F175: 80 | G175: 79 | H175: 96 | I175: 93 | J175: 90 | K175: 72 | L175: 91 | M175: 81
A176: London | B176: 74 | C176: 65 | D176: 72 | E176: 83 | F176: 90 | G176: 92 | H176: 83 | I176: 83 | J176: 103 | K176: 81 | L176: 98 | M176: 87
A177: Owen Sound | B177: 129 | C177: 86 | D177: 78 | E177: 71 | F177: 84 | G177: 73 | H177: 70 | I177: 79 | J177: 106 | K177: 98 | L177: 110 | M177: 130
A178: Point Pelee National Park | B178: 57 | C178: 59 | D178: 70 | E178: 76 | F178: 77 | G178: 80 | H178: 84 | I178: 86 | J178: 93 | K178: 70 | L178: 95 | M178: 77
A179: Sarnia | B179: 52 | C179: 51 | D179: 57 | E179: 72 | F179: 80 | G179: 83 | H179: 78 | I179: 79 | J179: 105 | K179: 76 | L179: 82 | M179: 64
A180: Waterloo | B180: 65 | C180: 55 | D180: 61 | E180: 75 | F180: 82 | G180: 82 | H180: 99 | I180: 84 | J180: 88 | K180: 67 | L180: 87 | M180: 71
A181: Windsor | B181: 62 | C181: 62 | D181: 70 | E181: 83 | F181: 89 | G181: 86 | H181: 89 | I181: 73 | J181: 94 | K181: 73 | L181: 80 | M181: 74
A182: Chapleau | B182: 52 | C182: 43 | D182: 47 | E182: 53 | F182: 70 | G182: 80 | H182: 82 | I182: 76 | J182: 95 | K182: 83 | L182: 64 | M182: 64
A183: Gore Bay | B183: 45 | C183: 30 | D183: 63 | E183: 67 | F183: 61 | G183: 65 | H183: 48 | I183: 65 | J183: 88 | K183: 107 | L183: 94 | M183: 70
A184: Kapuskasing | B184: 48 | C184: 36 | D184: 48 | E184: 55 | F184: 69 | G184: 80 | H184: 102 | I184: 77 | J184: 101 | K184: 86 | L184: 71 | M184: 56
A185: Moosonee | B185: 33 | C185: 29 | D185: 35 | E185: 38 | F185: 55 | G185: 72 | H185: 97 | I185: 78 | J185: 95 | K185: 75 | L185: 56 | M185: 42
A186: North Bay | B186: 69 | C186: 57 | D186: 65 | E186: 72 | F186: 96 | G186: 98 | H186: 99 | I186: 91 | J186: 115 | K186: 107 | L186: 98 | M186: 78
A187: Sault Ste Marie | B187: 64 | C187: 43 | D187: 56 | E187: 65 | F187: 66 | G187: 74 | H187: 72 | I187: 83 | J187: 102 | K187: 102 | L187: 92 | M187: 77
A188: South Baymouth | B188: 78 | C188: 50 | D188: 64 | E188: 69 | F188: 72 | G188: 59 | H188: 51 | I188: 74 | J188: 95 | K188: 112 | L188: 92 | M188: 94
A189: Sudbury | B189: 62 | C189: 51 | D189: 60 | E189: 66 | F189: 83 | G189: 80 | H189: 77 | I189: 85 | J189: 101 | K189: 91 | L189: 78 | M189: 67
A190: Timmins | B190: 52 | C190: 41 | D190: 55 | E190: 56 | F190: 67 | G190: 83 | H190: 91 | I190: 82 | J190: 85 | K190: 82 | L190: 76 | M190: 64
A191: Wawa | B191: 56 | C191: 47 | D191: 54 | E191: 67 | F191: 78 | G191: 82 | H191: 96 | I191: 93 | J191: 122 | K191: 118 | L191: 86 | M191: 73
A192: Atikokan | B192: 35 | C192: 25 | D192: 33 | E192: 50 | F192: 77 | G192: 104 | H192: 118 | I192: 88 | J192: 100 | K192: 76 | L192: 45 | M192: 36
A193: Big Trout Lake | B193: 22 | C193: 19 | D193: 31 | E193: 33 | F193: 40 | G193: 80 | H193: 85 | I193: 89 | J193: 90 | K193: 50 | L193: 55 | M193: 28
A194: Dryden | B194: 27 | C194: 20 | D194: 30 | E194: 40 | F194: 73 | G194: 115 | H194: 103 | I194: 84 | J194: 89 | K194: 64 | L194: 47 | M194: 29
A195: Fort Frances | B195: 35 | C195: 22 | D195: 26 | E195: 41 | F195: 78 | G195: 119 | H195: 97 | I195: 92 | J195: 83 | K195: 57 | L195: 46 | M195: 32
A196: Kenora | B196: 26 | C196: 19 | D196: 28 | E196: 36 | F196: 81 | G196: 119 | H196: 103 | I196: 84 | J196: 86 | K196: 63 | L196: 42 | M196: 28
A197: Red Lake | B197: 27 | C197: 17 | D197: 28 | E197: 34 | F197: 73 | G197: 99 | H197: 103 | I197: 88 | J197: 83 | K197: 60 | L197: 43 | M197: 30
A198: Thunder Bay | B198: 26 | C198: 20 | D198: 31 | E198: 53 | F198: 67 | G198: 84 | H198: 87 | I198: 89 | J198: 73 | K198: 64 | L198: 53 | M198: 35
A199: Alberton | B199: 96 | C199: 74 | D199: 81 | E199: 80 | F199: 93 | G199: 82 | H199: 86 | I199: 80 | J199: 92 | K199: 96 | L199: 99 | M199: 94
A200: O'Leary | B200: 99 | C200: 82 | D200: 89 | E200: 86 | F200: 103 | G200: 85 | H200: 96 | I200: 88 | J200: 102 | K200: 100 | L200: 112 | M200: 107
A201: Summerside | B201: 96 | C201: 75 | D201: 79 | E201: 84 | F201: 98 | G201: 91 | H201: 74 | I201: 93 | J201: 97 | K201: 88 | L201: 98 | M201: 100
A202: Tignish | B202: 113 | C202: 82 | D202: 74 | E202: 77 | F202: 93 | G202: 88 | H202: 89 | I202: 88 | J202: 78 | K202: 99 | L202: 116 | M202: 109
... 69 more rows
